bitfinex/quotes_BTCUSD_20250224
["timestamp","ask_amount","ask_price","bid_price","bid_amount"]
[1740423470500,1.658977,94353.0,94352.0,0.43524373]
[1740423470705,1.658977,94353.0,94352.0,0.4788121]
[1740423471108,1.5,94353.0,94352.0,0.4788121]
[1740423471515,1.658977,94353.0,94352.0,0.43524373]
[1740423474117,1.5,94353.0,94352.0,0.43524373]
[1740423477679,1.658977,94353.0,94352.0,0.43524373]
[1740423478216,1.5,94353.0,94352.0,0.43524373]
[1740423478418,1.5,94353.0,94352.0,0.4788121]
[1740423478589,1.5,94353.0,94352.0,0.43524373]
[1740423480296,1.658977,94353.0,94352.0,0.43524373]
[1740423480949,1.5,94353.0,94352.0,0.43524373]
[1740423481141,1.5,94353.0,94352.0,0.53788942]
[1740423482733,1.5,94353.0,94352.0,0.69686842]
[1740423483845,1.501,94353.0,94352.0,0.69686842]
[1740423484611,1.501,94353.0,94352.0,0.72080927]
[1740423485002,1.502,94353.0,94352.0,0.72080927]
[1740423486314,1.502,94353.0,94352.0,0.71140927]
[1740423486543,1.502,94353.0,94352.0,0.72080927]
[1740423486738,1.502,94353.0,94352.0,0.71140927]
[1740423486992,1.502,94353.0,94352.0,0.74066844]
[1740423488346,1.502,94353.0,94352.0,0.55774859]
[1740423488763,1.502,94353.0,94352.0,0.53788942]
[1740423492813,1.5,94353.0,94352.0,0.53788942]
[1740423493013,1.5,94353.0,94352.0,0.59172236]
[1740423493175,1.659977,94353.0,94352.0,0.54188942]
[1740423493397,1.659977,94353.0,94352.0,0.31054373]
[1740423494022,1.658977,94353.0,94352.0,0.30654373]
[1740423494420,1.658977,94353.0,94352.0,0.30954373]
[1740423494664,1.659977,94353.0,94352.0,0.0038496]
[1740423494840,1.658977,94353.0,94352.0,0.0038496]
[1740423495836,1.658977,94353.0,94352.0,0.0008496]
[1740423496045,1.808977,94353.0,94352.0,0.0008496]
[1740423496208,1.808977,94353.0,94352.0,0.0018496]
[1740423496782,1.808977,94353.0,94352.0,0.0008496]
[1740423496983,1.809977,94353.0,94352.0,0.0008496]
[1740423497665,1.808977,94353.0,94352.0,0.0018496]
[1740423498238,1.884577,94353.0,94352.0,0.0018496]
[1740423499018,0.38458,94351.0,94350.0,6e-07]
[1740423499197,0.384592,94344.0,94343.0,0.0008108]
[1740423499342,0.48723769,94344.0,94343.0,0.0008108]
[1740423499573,0.53293769,94344.0,94343.0,0.0008108]
[1740423500333,0.53793769,94344.0,94343.0,0.0008108]
[1740423500533,0.5383689,94344.0,94343.0,0.0008108]
[1740423500733,0.5333689,94344.0,94343.0,0.0008108]
[1740423500942,0.30942321,94344.0,94343.0,0.0008108]
[1740423501150,0.00543121,94344.0,94343.0,0.0008108]
[1740423501550,0.00043121,94344.0,94343.0,0.00849188]
[1740423501777,0.00543121,94344.0,94343.0,0.00849188]
[1740423501975,0.00043121,94344.0,94343.0,0.00849188]
[1740423502225,0.00043121,94344.0,94343.0,0.05359188]
[1740423502800,0.15942321,94344.0,94343.0,0.05359188]
[1740423503023,0.00043121,94344.0,94343.0,0.05359188]
[1740423503254,0.00643121,94344.0,94343.0,0.05359188]
[1740423503667,0.00043121,94344.0,94343.0,0.05359188]
[1740423504030,0.00143121,94344.0,94343.0,0.05359188]
[1740423504800,0.16042321,94344.0,94343.0,0.05359188]
[1740423505008,0.00143121,94344.0,94343.0,0.05359188]
[1740423505645,0.16042321,94344.0,94343.0,0.0008108]
[1740423505972,0.15,94352.0,94343.0,0.0008108]
[1740423506203,0.158992,94344.0,94343.0,0.00088387]
[1740423508876,0.159992,94344.0,94343.0,0.00088387]
[1740423509074,0.159992,94344.0,94343.0,0.00918226]
[1740423509904,0.158992,94344.0,94343.0,0.00918226]
[1740423512878,0.15,94352.0,94343.0,0.00918226]
[1740423513178,0.15,94348.0,94343.0,0.00918226]
[1740423513377,0.15,94348.0,94344.0,0.15899]
[1740423513575,0.15,94348.0,94345.0,0.03801643]
[1740423513775,0.211933,94370.0,94343.0,0.16817526]
[1740423514025,0.211954,94360.0,94344.0,0.0793]
[1740423514180,0.151,94352.0,94345.0,0.0472]
[1740423514379,0.15,94352.0,94345.0,0.0472]
[1740423514650,0.158972,94356.0,94345.0,0.0472]
[1740423514840,0.15897,94358.0,94346.0,0.03973239]
[1740423514990,0.158971,94357.0,94346.0,0.03973239]
[1740423515195,0.158976,94354.0,94346.0,0.03973239]
[1740423515400,0.001,94352.0,94346.0,0.03973239]
[1740423515597,0.15,94364.0,94346.0,0.03973239]
[1740423515810,0.211963,94356.0,94346.0,0.03973239]
[1740423515999,0.21195,94362.0,94346.0,0.03973239]
[1740423516201,0.158987,94348.0,94346.0,0.03973239]
[1740423516483,0.15,94364.0,94346.0,0.03973239]
[1740423516484,0.158987,94347.0,94346.0,0.03973239]
[1740423516697,0.158992,94344.0,94343.0,0.00088387]
[1740423517501,0.308992,94344.0,94343.0,0.00088387]
[1740423520807,0.311992,94344.0,94343.0,0.00088387]
[1740423521937,0.314992,94344.0,94343.0,0.00088387]
[1740423526493,0.311992,94344.0,94343.0,0.00088387]
[1740423526691,0.308992,94344.0,94343.0,0.00088387]
[1740423526917,0.310992,94344.0,94343.0,0.00088387]
[1740423527439,0.152,94344.0,94343.0,0.00866226]
[1740423527714,0.152,94344.0,94343.0,0.05696226]
[1740423527715,0.002,94344.0,94343.0,0.05696226]
[1740423527946,0.003,94344.0,94343.0,0.05696226]
[1740423528112,0.004,94344.0,94343.0,0.05696226]
[1740423528249,0.158992,94344.0,94343.0,0.05696226]
[1740423528450,0.308992,94344.0,94343.0,0.00088387]
[1740423528919,0.41163769,94344.0,94343.0,0.00088387]
[1740423530623,0.41563769,94344.0,94343.0,0.00088387]
[1740423531647,0.41963769,94344.0,94343.0,0.00088387]
[1740423532274,0.316992,94344.0,94343.0,0.00088387]
[1740423533107,0.312992,94344.0,94343.0,0.00088387]
[1740423533348,0.315992,94344.0,94343.0,0.00088387]
[1740423533555,0.311992,94344.0,94343.0,0.00088387]
[1740423533771,0.313992,94344.0,94343.0,0.00088387]
[1740423540545,0.311992,94344.0,94343.0,0.00088387]
[1740423540785,0.153,94344.0,94343.0,0.00088387]
[1740423541038,0.155,94344.0,94343.0,0.08228387]
[1740423541285,0.0017,94346.0,94343.0,0.09051226]
[1740423541533,0.0017,94346.0,94344.0,0.0419]
[1740423542907,0.0027,94346.0,94344.0,0.0419]
[1740423543108,0.30899,94345.0,94344.0,0.0419]
[1740423543520,0.308992,94344.0,94343.0,0.08228387]
[1740423543761,0.308992,94344.0,94343.0,0.00088387]
[1740423545169,0.308992,94344.0,94343.0,0.00188387]
[1740423545609,0.308992,94344.0,94343.0,0.00588387]
[1740423546766,0.213687,94346.0,94343.0,0.00588387]
[1740423546767,0.0017,94346.0,94344.0,0.0815]
[1740423546967,0.0017,94346.0,94345.0,0.0478]
[1740423547169,0.0017,94346.0,94345.0,0.39093569]
[1740423547492,0.0017,94346.0,94345.0,0.69662982]
[1740423548305,0.0017,94346.0,94345.0,0.71648944]
[1740423548667,0.0027,94346.0,94345.0,0.71948944]
[1740423548870,0.0037,94346.0,94345.0,0.71948944]
[1740423549302,0.0027,94346.0,94345.0,0.71648944]
[1740423549509,0.0037,94346.0,94345.0,0.71948944]
[1740423550239,0.0027,94346.0,94345.0,0.71948944]
[1740423550443,0.0037,94346.0,94345.0,0.72148944]
[1740423551524,0.0037,94346.0,94345.0,0.56249944]
[1740423552773,0.0027,94346.0,94345.0,0.55949944]
[1740423552978,0.0037,94346.0,94345.0,0.46385375]
[1740423553154,0.162689,94346.0,94345.0,0.46385375]
[1740423553519,0.161689,94346.0,94345.0,0.46185375]
[1740423553720,0.312689,94346.0,94345.0,0.33455375]
[1740423553926,0.312689,94346.0,94345.0,0.02885962]
[1740423554202,0.310689,94346.0,94345.0,0.01985962]
[1740423554338,0.311689,94346.0,94345.0,0.02185962]
[1740423554944,0.308992,94344.0,94343.0,0.00188387]
[1740423556356,0.308692,94344.0,94343.0,0.00188387]
[1740423556766,0.308692,94344.0,94343.0,0.00388387]
[1740423557170,0.308692,94344.0,94343.0,0.00188387]
[1740423557381,0.308692,94344.0,94343.0,0.00288387]
[1740423557578,0.308692,94344.0,94343.0,0.00488387]
[1740423561323,0.3103922,94344.0,94343.0,0.00488387]
[1740423562340,0.1517002,94344.0,94343.0,0.13148387]
[1740423562650,0.1517002,94344.0,94343.0,0.14463226]
[1740423564198,0.1517002,94344.0,94343.0,0.13148387]
[1740423565693,0.0017,94346.0,94343.0,0.13148387]
[1740423566008,0.158992,94344.0,94343.0,0.13148387]
[1740423566238,0.158992,94344.0,94343.0,0.00488387]
[1740423566583,0.158992,94344.0,94343.0,0.00288387]
[1740423566826,0.158992,94344.0,94343.0,0.01183226]
[1740423567186,0.158992,94344.0,94343.0,0.01083226]
[1740423567753,0.158992,94344.0,94343.0,0.01283226]
[1740423568950,0.0017,94346.0,94343.0,0.01283226]
[1740423569495,0.16069,94346.0,94343.0,0.01283226]
[1740423569821,0.0017,94346.0,94343.0,0.01183226]
[1740423570022,0.0017,94346.0,94343.0,0.00983226]
[1740423570248,0.0017,94346.0,94343.0,0.01083226]
[1740423570471,0.0017,94346.0,94343.0,0.01183226]
[1740423570748,0.0017,94346.0,94344.0,0.09713181]
[1740423571173,0.0017,94346.0,94344.0,0.0799]
[1740423572602,0.0017,94346.0,94344.0,0.0809]
[1740423573125,0.0017,94346.0,94345.0,0.15014569]
[1740423573330,0.0017,94346.0,94345.0,0.38863569]
[1740423573740,1.24176051,94353.0,94345.0,0.22964569]
[1740423573877,1.24176051,94353.0,94350.0,0.23848]
[1740423574080,1.24176051,94353.0,94350.0,0.0795]
[1740423574337,1.24176051,94353.0,94351.0,0.10264569]
[1740423574536,1.24176051,94353.0,94351.0,0.10164569]
[1740423575244,1.24276051,94353.0,94351.0,0.10164569]
[1740423575487,1.24276051,94353.0,94352.0,0.02801978]
[1740423575698,0.15898,94351.0,94350.0,0.0845]
[1740423576669,0.15898,94351.0,94350.0,0.0795]
[1740423576871,0.15898,94351.0,94350.0,0.0835]
[1740423577970,0.15998,94351.0,94350.0,0.0895]
[1740423578106,0.15998,94351.0,94350.0,0.10338839]
[1740423582191,0.001,94351.0,94350.0,0.10338839]
[1740423582527,0.15998,94351.0,94350.0,0.10338839]
[1740423582750,0.001,94351.0,94350.0,0.10338839]
[1740423583749,0.001,94351.0,94350.0,0.20603408]
[1740423585445,0.0027002,94351.0,94350.0,0.20603408]
[1740423590979,0.1616802,94351.0,94350.0,0.0895]
[1740423591187,0.1616802,94351.0,94350.0,0.01]
[1740423591997,1.32173346,94353.0,94350.0,0.01]
[1740423592201,0.15898,94351.0,94350.0,0.01]
[1740423592937,0.15898,94351.0,94350.0,0.004]
[1740423593160,0.15898,94351.0,94350.0,0.009]
[1740423593821,0.15898,94351.0,94350.0,0.004]
[1740423594029,0.15998,94351.0,94350.0,0.01]
[1740423597607,0.15998,94351.0,94350.0,0.0108495]
[1740423598014,0.161679,94351.0,94350.0,0.0108495]
[1740423598571,0.002699,94351.0,94350.0,0.0108495]
[1740423598962,0.002699,94351.0,94350.0,0.0880495]
[1740423599161,0.002699,94351.0,94350.0,0.09712785]
[1740423599781,0.002699,94351.0,94350.0,0.0108495]
[1740423600031,0.161679,94351.0,94350.0,0.0108495]
[1740423600297,0.311679,94351.0,94350.0,0.0108495]
[1740423600477,0.41432469,94351.0,94350.0,0.0108495]
[1740423600724,0.49392469,94351.0,94350.0,0.0108495]
[1740423601241,0.311679,94351.0,94350.0,0.0108495]
[1740423601726,0.311679,94351.0,94350.0,0.0068495]
[1740423601937,0.311679,94351.0,94350.0,0.0008495]
[1740423602145,0.314679,94351.0,94350.0,0.0008495]
[1740423602354,0.155699,94351.0,94350.0,0.0008495]
[1740423602763,0.155699,94351.0,94350.0,0.0038495]
[1740423602967,0.159699,94351.0,94350.0,0.0038495]
[1740423603392,0.155699,94351.0,94350.0,0.0861495]
[1740423603598,0.155699,94351.0,94350.0,0.09903785]
[1740423603774,0.314679,94351.0,94350.0,0.09903785]
[1740423603978,0.155699,94351.0,94350.0,0.09903785]
[1740423604742,0.314679,94351.0,94350.0,0.0901495]
[1740423604946,0.155699,94351.0,94350.0,0.0078495]
[1740423607413,0.155699,94351.0,94350.0,0.24169519]
[1740423608948,0.155699,94351.0,94350.0,0.40067719]
[1740423608949,0.005699,94351.0,94350.0,0.40067719]
[1740423609485,0.005699,94351.0,94350.0,0.41521804]
[1740423609682,0.005699,94351.0,94350.0,0.41121804]
[1740423609935,0.001699,94351.0,94350.0,0.41321804]
[1740423610140,1.03487426,94353.0,94352.0,0.29861985]
[1740423610350,1.03487426,94353.0,94352.0,0.40126554]
[1740423611535,1.03487426,94353.0,94352.0,0.4092199]
[1740423612261,1.03657326,94353.0,94352.0,0.4092199]
[1740423612453,1.03757326,94353.0,94352.0,0.4232199]
[1740423612824,1.03757326,94353.0,94352.0,0.4432199]
[1740423613910,1.03757326,94353.0,94352.0,0.43526554]
[1740423614328,0.90947326,94353.0,94352.0,0.43526554]
[1740423614556,0.90947326,94353.0,94352.0,0.60526554]
[1740423614737,0.78137326,94353.0,94352.0,0.60526554]
[1740423615137,0.73137326,94353.0,94352.0,0.62641433]
[1740423615639,0.73137326,94353.0,94352.0,0.64368869]
[1740423615777,0.73037326,94353.0,94352.0,0.62968869]
[1740423615982,0.73237326,94353.0,94352.0,0.64268869]
[1740423616398,0.73137326,94353.0,94352.0,0.63668869]
[1740423616606,0.73137326,94353.0,94352.0,0.64268869]
[1740423617018,0.73237326,94353.0,94352.0,0.64268869]
[1740423617189,0.45822526,94353.0,94352.0,0.64268869]
[1740423617394,2.6e-07,94353.0,94352.0,0.63568869]
[1740423617799,2.6e-07,94353.0,94352.0,0.64268869]
[1740423618030,0.15891,94393.0,94366.0,0.21194]
[1740423618160,0.258469,94398.0,94374.0,0.10264569]
[1740423618367,0.158906,94395.0,94374.0,0.26158769]
[1740423618547,0.158906,94395.0,94374.0,0.11196569]
[1740423618949,0.2243609,94396.0,94374.0,0.14381069]
[1740423618950,0.0124879,94396.0,94374.0,0.14381069]
[1740423619194,0.0466,94398.0,94374.0,0.46349354]
[1740423619393,0.0017427,94375.0,94374.0,0.46349354]
[1740423619636,0.0017427,94375.0,94374.0,0.47049354]
[1740423619821,0.0017427,94375.0,94374.0,0.47749354]
[1740423620028,0.0017427,94375.0,94374.0,0.45749354]
[1740423620234,0.0017427,94375.0,94374.0,0.23149069]
[1740423620425,0.0017427,94375.0,94374.0,0.15785069]
[1740423620627,0.0017427,94375.0,94374.0,0.12600569]
[1740423621217,0.0017427,94375.0,94374.0,0.11664569]
[1740423622162,0.00164972,94375.0,94374.0,0.11664569]
[1740423627890,0.00164972,94375.0,94374.0,0.35158769]
[1740423628098,0.00164972,94375.0,94374.0,0.19264569]
[1740423629737,0.00164972,94375.0,94374.0,0.35158769]
[1740423629939,0.00164972,94375.0,94374.0,0.19264569]
[1740423631319,0.211836,94413.0,94374.0,0.19264569]
[1740423631320,0.158915,94390.0,94374.0,0.19264569]
[1740423631516,4.333e-05,94403.0,94374.0,0.19264569]
[1740423631718,0.15892,94387.0,94374.0,0.19264569]
[1740423632393,0.15894,94375.0,94374.0,0.11664569]
[1740423632556,0.158936,94378.0,94374.0,0.10964569]
[1740423632787,0.211902,94383.0,94374.0,0.10264569]
[1740423632954,0.211902,94383.0,94374.0,0.10664569]
[1740423633161,0.211908,94381.0,94374.0,0.10664569]
[1740423633524,0.158932,94380.0,94374.0,0.10664569]
[1740423633806,0.158923,94386.0,94374.0,0.10664569]
[1740423634099,0.15892,94388.0,94374.0,0.10664569]
[1740423634354,0.158921,94387.0,94374.0,0.10264569]
[1740423634573,0.1253,94402.0,94375.0,0.3224]
[1740423634805,0.158913,94392.0,94376.0,0.10264569]
[1740423635035,0.158919,94388.0,94376.0,0.10264569]
[1740423635246,0.158922,94386.0,94376.0,0.10264569]
[1740423635474,0.15,94401.0,94376.0,0.10264569]
[1740423635674,0.195,94397.0,94376.0,0.10264569]
[1740423635882,0.205637,94377.0,94376.0,0.42504569]
[1740423636106,0.205637,94377.0,94374.0,0.0068491]
[1740423636107,0.15894,94375.0,94374.0,0.0008491]
[1740423638454,0.15894,94375.0,94374.0,0.0028491]
[1740423638658,0.15894,94375.0,94374.0,0.0068491]
[1740423644394,0.43174,94375.0,94374.0,0.0068491]
[1740423645198,0.43174,94375.0,94374.0,0.0028491]
[1740423645401,0.43174,94375.0,94374.0,0.0008491]
[1740423645605,0.43274,94375.0,94374.0,0.0008491]
[1740423645825,0.43174,94375.0,94374.0,0.0008491]
[1740423646228,0.43274,94375.0,94374.0,0.0008491]
[1740423647903,0.198,94375.0,94374.0,0.0008491]
[1740423648092,0.198,94375.0,94374.0,0.66103679]
[1740423648093,0.001,94375.0,94374.0,0.66103679]
[1740423648267,0.001,94375.0,94374.0,1.19853679]
[1740423648472,0.001,94375.0,94374.0,1.23307764]
[1740423648662,0.001,94375.0,94374.0,1.40307764]
[1740423649203,0.00174153,94403.0,94384.0,0.01454085]
[1740423649403,0.158899,94400.0,94391.0,0.158913]
[1740423649710,0.16063553,94403.0,94393.0,0.158908]
[1740423650040,0.158896,94402.0,94394.0,0.10264569]
[1740423650244,0.00174153,94403.0,94395.0,0.158906]
[1740423650456,0.158896,94402.0,94396.0,0.10264569]
[1740423650631,0.158903,94397.0,94396.0,0.10264569]
[1740423651141,0.00174153,94403.0,94396.0,0.10264569]
[1740423651278,0.00174153,94403.0,94402.0,0.158894]
[1740423651479,0.00174153,94403.0,94402.0,0.10264569]
[1740423652125,0.00174153,94403.0,94402.0,0.10164569]
[1740423652711,0.16063453,94403.0,94402.0,0.10664569]
[1740423652919,0.00174153,94403.0,94402.0,0.10664569]
[1740423653300,0.00174153,94403.0,94402.0,0.11364569]
[1740423653512,0.00174153,94403.0,94402.0,0.27253969]
[1740423654258,0.00174153,94403.0,94402.0,0.11364569]
[1740423654583,0.00174153,94403.0,94402.0,0.27253969]
[1740423655000,0.00174153,94403.0,94402.0,0.43604569]
[1740423655637,0.00174153,94403.0,94402.0,0.59493969]
[1740423656062,0.00174153,94403.0,94402.0,0.43604569]
[1740423657036,0.00174153,94403.0,94402.0,0.59493969]
[1740423657730,0.00174153,94403.0,94402.0,0.43604569]
[1740423659386,0.31063453,94403.0,94402.0,0.3344]
[1740423659588,0.35773453,94403.0,94402.0,0.3344]
[1740423659813,0.19884153,94403.0,94402.0,0.3344]
[1740423660188,0.01231481,94415.0,94402.0,0.43704569]
[1740423660389,0.0017008,94441.0,94404.0,0.211855]
[1740423660518,0.0017008,94441.0,94405.0,0.42652841]
[1740423660721,0.02906149,94431.0,94405.0,0.42504569]
[1740423660920,0.158871,94417.0,94407.0,0.158886]
[1740423661185,0.02906149,94431.0,94408.0,0.10264569]
[1740423661590,0.158883,94409.0,94408.0,0.10264569]
[1740423661791,0.158883,94409.0,94408.0,0.42504569]
[1740423662007,0.211799,94429.0,94408.0,0.42504569]
[1740423662357,0.02906149,94431.0,94408.0,0.42504569]
[1740423662358,0.158875,94414.0,94408.0,0.42504569]
[1740423662529,0.211828,94416.0,94408.0,0.42504569]
[1740423662827,0.158877,94413.0,94408.0,0.42504569]
[1740423663058,0.158883,94409.0,94408.0,0.42504569]
[1740423663266,0.158883,94409.0,94408.0,0.3224]
[1740423663912,0.15879005,94409.0,94408.0,0.3224]
[1740423664270,0.15879005,94409.0,94408.0,0.3264]
[1740423664480,0.15879005,94409.0,94408.0,0.3294]
[1740423665046,0.158883,94409.0,94408.0,0.3294]
[1740423665246,0.158883,94409.0,94408.0,0.3264]
[1740423665495,0.158883,94409.0,94408.0,0.3224]
[1740423665730,0.361812,94424.0,94408.0,0.3234]
[1740423666016,0.361812,94424.0,94408.0,0.3284]
[1740423666245,0.158883,94409.0,94408.0,0.3284]
[1740423666437,0.158883,94409.0,94408.0,0.3224]
[1740423666642,0.158883,94409.0,94408.0,0.3264]
[1740423666845,0.361808,94425.0,94408.0,0.3264]
[1740423667001,0.15887,94417.0,94409.0,0.10264569]
[1740423667200,0.0458,94429.0,94409.0,0.10264569]
[1740423667401,0.0458,94429.0,94410.0,0.3224]
[1740423667628,0.02906149,94431.0,94411.0,0.10264569]
[1740423668011,0.211834,94414.0,94411.0,0.10264569]
[1740423668205,0.158878,94412.0,94411.0,0.10264569]
[1740423668880,0.158879,94411.0,94410.0,0.3224]
[1740423669912,0.155179,94411.0,94410.0,0.3224]
[1740423670133,0.211814,94423.0,94410.0,0.3224]
[1740423670334,0.0472,94429.0,94410.0,0.3224]
[1740423670595,0.158879,94411.0,94410.0,0.3274]
[1740423671944,0.158879,94411.0,94410.0,0.3314]
[1740423672164,0.158879,94411.0,94410.0,0.3224]
[1740423672351,0.158879,94411.0,94410.0,0.3254]
[1740423672691,0.158879,94411.0,94410.0,0.3224]
[1740423673105,0.158879,94411.0,94410.0,0.3244]
[1740423673754,0.158879,94411.0,94410.0,0.3224]
[1740423673966,0.158879,94411.0,94410.0,0.3234]
[1740423674123,0.158879,94411.0,94410.0,0.3254]
[1740423674573,0.158879,94411.0,94410.0,0.3274]
[1740423675681,0.0016978,94416.0,94410.0,0.3274]
[1740423675682,0.0016978,94416.0,94410.0,0.43004569]
[1740423675880,0.0016978,94416.0,94411.0,0.1871284]
[1740423676390,0.0016978,94416.0,94413.0,0.211835]
[1740423676588,0.0016978,94416.0,94415.0,0.158873]
[1740423676720,0.0016978,94416.0,94415.0,0.58540133]
[1740423676931,0.0016978,94416.0,94415.0,0.66701869]
[1740423677327,0.08138032,94476.0,94415.0,1.00367293]
[1740423677570,0.158822,94446.0,94429.0,0.1328]
[1740423677753,0.15,94470.0,94430.0,0.42652804]
[1740423677956,0.158831,94440.0,94430.0,0.42504569]
[1740423678156,0.211734,94458.0,94430.0,0.42504569]
[1740423678382,0.158838,94436.0,94430.0,0.42504569]
[1740423679167,0.158829,94441.0,94430.0,0.42504569]
[1740423679512,0.15,94452.0,94431.0,0.00148238]
[1740423679716,0.15,94452.0,94432.0,0.10264569]
[1740423679924,0.01217519,94476.0,94436.0,0.158837]
[1740423680097,0.15881,94453.0,94437.0,0.42504569]
[1740423680299,0.15,94462.0,94437.0,0.42504569]
[1740423680503,0.158811,94452.0,94437.0,0.42504569]
[1740423680705,0.158812,94451.0,94438.0,0.0815]
[1740423680849,0.15924456,94452.0,94439.0,0.10264569]
[1740423681289,0.00143356,94452.0,94439.0,0.10264569]
[1740423681467,0.21175,94451.0,94439.0,0.10264569]
[1740423681848,0.158826,94443.0,94439.0,0.10264569]
[1740423682440,0.158831,94440.0,94439.0,0.10264569]
[1740423683061,0.211774,94441.0,94437.0,0.3224]
[1740423683271,0.158834,94438.0,94437.0,0.3224]
[1740423684474,0.158834,94438.0,94437.0,0.3264]
[1740423684857,0.158834,94438.0,94437.0,0.3324]
[1740423686445,0.308834,94438.0,94437.0,0.3324]
[1740423687274,0.308834,94438.0,94437.0,0.3284]
[1740423687478,0.308834,94438.0,94437.0,0.006]
[1740423687653,0.309834,94438.0,94437.0,0.006]
[1740423687890,0.309834,94438.0,94429.0,0.0016976]
[1740423687891,0.308847,94430.0,94429.0,0.0016976]
[1740423689562,0.001,94430.0,94429.0,0.0016976]
[1740423689766,0.159847,94430.0,94429.0,0.0016976]
[1740423690369,0.161847,94430.0,94429.0,0.0016976]
[1740423692588,0.003,94430.0,94429.0,0.10434329]
[1740423692808,0.003,94430.0,94429.0,0.18094329]
[1740423693443,0.161847,94430.0,94429.0,0.18094329]
[1740423693648,0.001,94430.0,94429.0,0.50334329]
[1740423693850,0.15,94448.0,94429.0,0.50334329]
[1740423693851,0.158838,94436.0,94429.0,0.50334329]
[1740423693999,0.158839,94436.0,94430.0,0.10264569]
[1740423694200,0.158839,94436.0,94430.0,0.10164569]
[1740423694901,0.15,94448.0,94430.0,0.10164569]
[1740423695087,0.211784,94436.0,94430.0,0.10164569]
[1740423695281,0.158839,94436.0,94430.0,0.10164569]
[1740423695849,0.158836,94437.0,94430.0,0.10264569]
[1740423696056,0.15884,94435.0,94430.0,0.10264569]
[1740423696231,0.158844,94432.0,94431.0,0.3224]
[1740423696470,0.158841,94434.0,94431.0,0.42504569]
[1740423696619,0.158841,94434.0,94432.0,0.10264569]
[1740423697049,0.211784,94436.0,94432.0,0.10264569]
[1740423697446,0.158842,94433.0,94432.0,0.10264569]
[1740423697849,0.158842,94433.0,94432.0,0.10364569]
[1740423698420,0.158842,94433.0,94432.0,0.10264569]
[1740423698615,0.0008488,94434.0,94432.0,0.10464569]
[1740423698888,0.158842,94433.0,94432.0,0.10464569]
[1740423699535,0.158842,94433.0,94432.0,0.42704569]
[1740423699686,0.0008488,94434.0,94432.0,0.42704569]
[1740423699896,0.0008488,94434.0,94432.0,0.42604569]
[1740423700257,0.0008488,94434.0,94432.0,0.42704569]
[1740423700467,0.1596898,94434.0,94432.0,0.42704569]
[1740423700668,0.0008488,94434.0,94432.0,0.42604569]
[1740423701022,0.0008488,94434.0,94432.0,0.42704569]
[1740423701023,0.158842,94433.0,94432.0,0.42704569]
[1740423701694,0.158842,94433.0,94432.0,0.3244]
[1740423702649,0.1596898,94434.0,94432.0,0.3244]
[1740423702854,0.158842,94433.0,94432.0,0.3234]
[1740423703433,0.158842,94433.0,94432.0,0.3254]
[1740423710055,0.1596908,94433.0,94432.0,0.3254]
[1740423711588,0.1596908,94433.0,94432.0,0.003]
[1740423713834,0.39757996,94433.0,94432.0,0.003]
[1740423714054,0.3096908,94433.0,94432.0,0.003]
[1740423714250,0.41068648,94433.0,94432.0,0.003]
[1740423715138,0.41068648,94433.0,94432.0,0.001]
[1740423715335,0.158846,94431.0,94430.0,0.0016976]
[1740423715542,0.308846,94431.0,94430.0,0.0016976]
[1740423716491,0.40850636,94431.0,94430.0,0.0016976]
[1740423716670,0.41050636,94431.0,94430.0,0.0016976]
[1740423716865,0.310846,94431.0,94430.0,0.0016976]
[1740423717069,0.311846,94431.0,94430.0,0.0016976]
[1740423717272,0.348146,94431.0,94430.0,0.0016976]
[1740423718325,0.44925382,94431.0,94430.0,0.0016976]
[1740423718659,0.41295382,94431.0,94430.0,0.0016976]
[1740423718898,0.311846,94431.0,94430.0,0.0016976]
[1740423720700,0.003,94431.0,94430.0,0.0016976]
[1740423721079,0.003,94431.0,94430.0,0.0767976]
[1740423721283,0.003,94431.0,94430.0,0.17944329]
[1740423721490,0.001,94431.0,94430.0,0.17944329]
[1740423721910,0.0008488,94433.0,94430.0,0.17944329]
[1740423722127,0.0008488,94433.0,94432.0,0.204944]
[1740423722330,0.0008488,94433.0,94432.0,0.38718969]
[1740423722695,0.09371521,94462.0,94451.0,0.239812]
[1740423722890,0.09371521,94462.0,94451.0,0.66485769]
[1740423723089,0.09371521,94462.0,94451.0,0.50604569]
[1740423723512,0.158803,94457.0,94451.0,0.50604569]
[1740423723707,0.09371521,94462.0,94451.0,0.66485769]
[1740423725199,0.09371521,94462.0,94451.0,0.66785769]
[1740423725530,0.09371521,94462.0,94451.0,0.67185769]
[1740423726280,0.15,94472.0,94451.0,0.67185769]
[1740423727268,0.211715,94467.0,94451.0,0.51304569]
[1740423727470,0.211732,94459.0,94451.0,0.51304569]
[1740423727733,0.22387019,94476.0,94451.0,0.67185769]
[1740423727734,0.211717,94466.0,94451.0,0.67185769]
[1740423728106,0.158789,94465.0,94451.0,0.67185769]
[1740423728269,0.158797,94460.0,94451.0,0.51304569]
[1740423728470,0.158785,94467.0,94451.0,0.67185769]
[1740423728909,0.211712,94468.0,94451.0,0.67185769]
[1740423729119,0.15879,94465.0,94451.0,0.67185769]
[1740423730117,0.21171,94469.0,94451.0,0.67185769]
[1740423730299,0.211709,94470.0,94451.0,0.67185769]
[1740423730476,0.158785,94467.0,94451.0,0.67185769]
[1740423730687,0.0008488,94475.0,94451.0,0.67185769]
[1740423731093,0.0008488,94475.0,94451.0,0.73359854]
[1740423731944,0.0008488,94475.0,94451.0,0.73059854]
[1740423732316,0.00143356,94452.0,94451.0,0.73359854]
[1740423732666,0.00143356,94452.0,94451.0,0.73959854]
[1740423733202,0.00143356,94452.0,94451.0,0.73359854]
[1740423733491,0.00143356,94452.0,94451.0,0.74059854]
[1740423734452,0.00228216,94452.0,94451.0,0.74059854]
[1740423735113,0.00228216,94452.0,94451.0,1.27809854]
[1740423736561,0.00228216,94452.0,94451.0,1.28749854]
[1740423737684,0.00228216,94452.0,94451.0,1.30749854]
[1740423738651,0.00228216,94452.0,94451.0,1.30049854]
[1740423739040,0.00128216,94452.0,94451.0,1.30049854]
[1740423739754,0.00128216,94452.0,94451.0,1.30749854]
[1740423739954,0.00128216,94452.0,94451.0,1.30049854]
[1740423740859,0.15,94497.0,94488.0,0.0762]
[1740423741061,0.15,94497.0,94489.0,0.42504569]
[1740423741381,0.158708,94514.0,94490.0,0.0014815]